bitfinex-derivatives/quotes_BTCF0:USTF0_20240814
["timestamp","ask_amount","ask_price","bid_price","bid_amount"]
[1723636148440,0.3608,61417.0,61415.0,0.0639081]
[1723636148837,0.3608,61417.0,61416.0,0.0639081]
[1723636149246,0.3608,61417.0,61411.0,0.07981692]
[1723636149445,0.3608,61417.0,61411.0,0.23981692]
[1723636150251,0.3608,61417.0,61413.0,0.2814]
[1723636150443,0.3608,61417.0,61413.0,0.51121692]
[1723636151241,0.3608,61417.0,61416.0,0.06409195]
[1723636152646,0.3618,61417.0,61416.0,0.06409195]
[1723636153046,0.3618,61417.0,61416.0,0.07809195]
[1723636153257,0.3618,61417.0,61416.0,0.014]
[1723636153751,0.3628,61417.0,61416.0,0.014]
[1723636154346,0.3618,61417.0,61413.0,0.003]
[1723636154549,0.3618,61417.0,61413.0,0.163]
[1723636155050,0.3618,61417.0,61416.0,0.06411811]
[1723636155247,0.3618,61417.0,61416.0,0.23411811]
[1723636155447,0.3618,61417.0,61416.0,0.17]
[1723636155950,0.3628,61417.0,61416.0,0.17]
[1723636156143,0.3628,61417.0,61416.0,0.18]
[1723636156652,0.3628,61417.0,61416.0,1.06848]
[1723636157254,0.3628,61417.0,61416.0,1.14829692]
[1723636157552,0.002,61417.0,61416.0,1.63914021]
[1723636158051,0.001,61417.0,61416.0,1.55738641]
[1723636158347,0.00024412,61422.0,61416.0,1.54338641]
[1723636158559,0.00024412,61422.0,61420.0,0.08008909]
[1723636158560,0.3608,61421.0,61420.0,0.08008909]
[1723636158740,0.3608,61421.0,61420.0,0.25008909]
[1723636158946,0.3608,61421.0,61420.0,0.17]
[1723636159551,0.4304,61421.0,61418.0,0.08011888]
[1723636159746,0.4304,61421.0,61416.0,0.02552]
[1723636159747,0.4304,61421.0,61417.0,0.08011888]
[1723636159947,0.3608,61420.0,61417.0,0.08011888]
[1723636160356,0.001,61417.0,61416.0,0.10411888]
[1723636161352,0.3608,61420.0,61416.0,0.014]
[1723636161539,0.3608,61420.0,61415.0,0.08011888]
[1723636161741,0.3608,61420.0,61402.0,0.11274225]
[1723636161742,0.3608,61420.0,61417.0,0.06413432]
[1723636161938,0.3608,61420.0,61416.0,0.06413432]
[1723636161939,0.0717,61419.0,61416.0,0.06413432]
[1723636162143,0.0717,61419.0,61415.0,0.06413432]
[1723636162350,0.0717,61419.0,61414.0,0.06413432]
[1723636162351,0.07,61418.0,61414.0,0.06413432]
[1723636162544,0.3608,61415.0,61413.0,0.06413432]
[1723636162745,0.3608,61415.0,61412.0,0.06413432]
[1723636162945,0.3608,61415.0,61411.0,0.06413432]
[1723636163145,0.3608,61412.0,61410.0,0.00024412]
[1723636163453,0.3608,61412.0,61411.0,0.06411626]
[1723636163646,0.3608,61412.0,61410.0,0.00024412]
[1723636164043,0.3608,61412.0,61411.0,0.06411348]
[1723636164755,0.3618,61412.0,61411.0,0.01]
[1723636166047,0.3628,61412.0,61411.0,0.024]
[1723636166243,0.3628,61412.0,61411.0,0.08811348]
[1723636166555,0.3628,61412.0,61411.0,0.024]
[1723636168458,0.3628,61412.0,61411.0,0.08811348]
[1723636168658,0.3628,61412.0,61411.0,0.024]
[1723636171659,0.3628,61412.0,61411.0,0.08808764]
[1723636172357,0.3628,61412.0,61411.0,0.024]
[1723636175555,0.3628,61412.0,61405.0,0.22788]
[1723636175556,0.7628,61412.0,61405.0,0.08011888]
[1723636175854,0.7628,61412.0,61394.0,0.15146659]
[1723636175855,0.6422,61406.0,61401.0,0.06416814]
[1723636176059,0.6422,61406.0,61394.0,0.00813577]
[1723636176060,0.3608,61402.0,61399.0,0.06416814]
[1723636176355,0.3608,61402.0,61397.0,0.06416814]
[1723636176563,0.3608,61398.0,61397.0,0.06416814]
[1723636176952,1.2494,61398.0,61394.0,0.06415911]
[1723636177155,1.2494,61398.0,61393.0,0.00024412]
[1723636177156,0.3608,61395.0,61393.0,0.00024412]
[1723636177562,0.48864,61394.0,61393.0,0.00024412]
[1723636178756,0.88864,61394.0,61393.0,0.00024412]
[1723636178963,0.95904,61394.0,61393.0,0.00024412]
[1723636180055,0.0704,61394.0,61393.0,0.00024412]
[1723636180868,0.0714,61394.0,61393.0,0.00024412]
[1723636181461,0.0724,61394.0,61393.0,0.00024412]
[1723636183267,0.002,61394.0,61393.0,0.00024412]
[1723636183657,0.01400556,61394.0,61393.0,0.00024412]
[1723636183852,0.002,61394.0,61393.0,0.00024412]
[1723636192756,0.002,61394.0,61384.0,0.06415911]
[1723636192962,0.7216,61385.0,61379.0,0.06415911]
[1723636193165,0.3608,61380.0,61379.0,0.23408463]
[1723636193862,0.3608,61380.0,61379.0,0.01219358]
[1723636194070,0.3608,61380.0,61377.0,0.06408463]
[1723636194271,0.3608,61380.0,61379.0,0.06408463]
[1723636194869,0.3608,61380.0,61377.0,0.2814]
[1723636195074,0.3608,61380.0,61377.0,0.4414]
[1723636195669,0.3618,61380.0,61377.0,0.4414]
[1723636195873,0.3618,61380.0,61377.0,0.4535888]
[1723636196171,0.3628,61380.0,61377.0,0.4535888]
[1723636196663,0.3628,61380.0,61378.0,0.06410683]
[1723636197062,0.3628,61380.0,61377.0,0.07629563]
[1723636197268,0.3628,61380.0,61377.0,0.0121888]
[1723636197567,0.3628,61380.0,61375.0,0.06410683]
[1723636197771,0.3628,61380.0,61376.0,0.06410683]
[1723636198167,0.3628,61380.0,61377.0,0.2814]
[1723636198367,0.3618,61380.0,61378.0,0.06410683]
[1723636198577,0.3618,61380.0,61379.0,0.06410683]
[1723636198770,0.3608,61380.0,61379.0,0.06410683]
[1723636198960,0.3608,61380.0,61378.0,0.06410683]
[1723636199159,0.3618,61380.0,61378.0,0.06410683]
[1723636199670,0.3628,61380.0,61378.0,0.06410683]
[1723636200074,0.3628,61380.0,61377.0,0.34550683]
[1723636200263,0.3628,61380.0,61377.0,0.48550683]
[1723636200464,0.3628,61380.0,61378.0,0.06410683]
[1723636201272,0.3628,61380.0,61377.0,0.06410683]
[1723636201566,0.3628,61380.0,61378.0,0.06410683]
[1723636202165,0.3618,61380.0,61379.0,0.06410683]
[1723636202472,0.3618,61380.0,61378.0,0.06410683]
[1723636202870,0.3618,61380.0,61377.0,0.2814]
[1723636203174,0.3618,61380.0,61377.0,0.52159823]
[1723636203564,0.3628,61380.0,61377.0,0.52159823]
[1723636204172,0.3628,61380.0,61377.0,0.92159823]
[1723636204373,0.3608,61385.0,61378.0,0.84956]
[1723636204570,0.3608,61385.0,61384.0,0.2814]
[1723636204769,0.3608,61385.0,61384.0,0.4514]
[1723636205078,0.3608,61385.0,61384.0,0.94012]
[1723636205765,0.00024433,61386.0,61384.0,1.41162]
[1723636206075,0.00024433,61386.0,61385.0,0.0726]
[1723636206278,0.3608,61390.0,61385.0,0.31869433]
[1723636206463,0.3608,61390.0,61385.0,0.2226]
[1723636206666,0.3608,61390.0,61389.0,0.0803713]
[1723636206969,0.3608,61390.0,61386.0,0.0803713]
[1723636207166,0.3608,61390.0,61386.0,0.16]
[1723636207372,0.0672,61389.0,61386.0,0.16]
[1723636207571,0.3608,61390.0,61386.0,0.2403713]
[1723636208477,0.3608,61390.0,61389.0,0.002]
[1723636209273,0.3608,61390.0,61388.0,0.0803713]
[1723636209274,0.3628,61390.0,61388.0,0.0803713]
[1723636209576,0.3628,61390.0,61386.0,0.002]
[1723636209773,0.3628,61390.0,61386.0,0.25844365]
[1723636210374,0.3628,61390.0,61386.0,0.162]
[1723636210575,0.0677,61389.0,61386.0,0.162]
[1723636210771,0.0677,61389.0,61388.0,0.08034299]
[1723636211276,0.0677,61389.0,61387.0,0.08034299]
[1723636211575,0.0677,61389.0,61388.0,0.06428932]
[1723636211880,0.0677,61389.0,61385.0,0.06429569]
[1723636211881,0.48868,61388.0,61385.0,0.06429569]
[1723636212180,0.3608,61386.0,61382.0,0.06429569]
[1723636212376,0.3608,61383.0,61382.0,0.06429569]
[1723636212571,0.3608,61383.0,61379.0,0.08034299]
[1723636212778,0.3608,61383.0,61381.0,0.08034299]
[1723636213175,0.3608,61383.0,61380.0,0.08034299]
[1723636214173,0.3608,61383.0,61381.0,0.08034299]
[1723636214575,0.001,61383.0,61381.0,0.014]
[1723636215378,0.3608,61382.0,61381.0,0.09435787]
[1723636215883,0.3608,61382.0,61381.0,0.08035787]
[1723636216273,0.3608,61382.0,61380.0,0.09435787]
[1723636216584,0.3608,61382.0,61380.0,0.014]
[1723636218688,0.3608,61382.0,61381.0,0.014]
[1723636219282,0.3608,61382.0,61381.0,0.09435787]
[1723636219681,0.3608,61382.0,61380.0,0.012]
[1723636219876,0.3608,61382.0,61379.0,0.2814]
[1723636220480,0.3608,61382.0,61380.0,0.014]
[1723636222287,0.3618,61382.0,61381.0,0.014]
[1723636222793,0.3608,61382.0,61378.0,0.09644365]
[1723636222988,0.3618,61382.0,61380.0,0.014]
[1723636223488,0.3618,61382.0,61379.0,0.008]
[1723636223681,0.3618,61382.0,61379.0,0.178]
[1723636223988,0.001,61382.0,61380.0,0.14183598]
[1723636224176,0.001,61382.0,61381.0,0.14183598]
[1723636224376,0.003,61382.0,61381.0,0.014]
[1723636225295,0.003,61382.0,61381.0,0.022]
[1723636225688,0.001,61382.0,61381.0,0.008]
[1723636227681,0.002,61382.0,61381.0,0.019]
[1723636229790,0.002,61382.0,61381.0,0.03096588]
[1723636230088,0.3628,61382.0,61381.0,0.03096588]
[1723636232488,0.00024433,61394.0,61381.0,1.3965616]
[1723636232489,0.36104433,61394.0,61381.0,1.3965616]
[1723636232679,0.36104433,61394.0,61392.0,0.08035201]
[1723636232885,0.36104433,61394.0,61393.0,0.08035201]
[1723636233084,0.36104433,61394.0,61392.0,0.08035201]
[1723636233381,0.36104433,61394.0,61389.0,0.08035201]
[1723636233586,0.3608,61392.0,61389.0,0.08035201]
[1723636233786,0.3608,61392.0,61388.0,0.08035201]
[1723636234184,0.3608,61392.0,61391.0,0.06429094]
[1723636234385,0.3608,61392.0,61387.0,0.08059634]
[1723636234386,0.3608,61392.0,61389.0,0.06429094]
[1723636235590,0.3608,61392.0,61390.0,0.06429094]
[1723636235791,0.3608,61392.0,61389.0,0.06429094]
[1723636236494,0.3608,61392.0,61390.0,0.06429094]
[1723636236790,0.3608,61392.0,61389.0,0.06429094]
[1723636237289,0.48868,61391.0,61389.0,0.06433405]
[1723636237489,0.48868,61391.0,61382.0,0.08035201]
[1723636237490,0.2814,61390.0,61388.0,0.003]
[1723636237698,0.2814,61389.0,61381.0,0.008]
[1723636237887,0.7216,61382.0,61381.0,0.008]
[1723636238282,1.21036,61382.0,61379.0,0.06434377]
[1723636238589,1.21036,61382.0,61378.0,0.06434377]
[1723636238590,0.7216,61382.0,61378.0,0.06434377]
[1723636238883,0.7216,61382.0,61381.0,0.001]
[1723636239283,1.22036,61382.0,61381.0,0.002]
[1723636241193,1.90176,61382.0,61375.0,0.00024433]
[1723636241397,0.6422,61376.0,61375.0,0.00024433]
[1723636241788,1.531,61376.0,61375.0,0.00024433]
[1723636242297,1.531,61376.0,61370.0,0.00018442]
[1723636242500,1.531,61376.0,61361.0,0.06434377]
[1723636242501,0.3608,61371.0,61361.0,0.06434377]
[1723636242691,0.3608,61362.0,61360.0,0.06434377]
[1723636242888,0.7216,61362.0,61359.0,0.06434377]
[1723636243088,0.7216,61362.0,61356.0,0.00831518]
[1723636243089,0.7216,61362.0,61360.0,0.06434377]
[1723636243294,0.7216,61362.0,61356.0,0.00831518]
[1723636243295,0.3608,61364.0,61361.0,0.06433359]
[1723636243488,0.00020425,61363.0,61358.0,0.08035201]
[1723636244092,0.00020425,61363.0,61359.0,0.07]
[1723636244390,0.00020425,61363.0,61359.0,0.15035201]
[1723636246401,0.00020425,61363.0,61359.0,0.07]
[1723636246898,0.00220425,61363.0,61362.0,0.06421457]
[1723636248390,0.00220425,61363.0,61361.0,0.06421457]
[1723636248590,0.00020425,61363.0,61361.0,0.06421457]
[1723636248791,0.00020425,61363.0,61358.0,0.15997263]
[1723636248792,0.00120425,61363.0,61358.0,0.15997263]
[1723636248991,0.00120425,61363.0,61362.0,0.06419876]
[1723636250397,0.00120425,61363.0,61361.0,0.06419876]
[1723636251002,0.00220425,61363.0,61361.0,0.06419876]
[1723636251797,0.3608,61362.0,61361.0,0.06519876]
[1723636251998,0.3608,61362.0,61361.0,0.001]
[1723636253305,0.3618,61362.0,61361.0,0.001]
[1723636253896,0.001,61362.0,61361.0,0.06519876]
[1723636254194,0.001,61362.0,61361.0,0.001]
[1723636256791,0.0723,61362.0,61361.0,0.001]
[1723636257399,0.3537,61362.0,61361.0,0.001]
[1723636257605,0.84262,61362.0,61361.0,0.001]
[1723636258105,1.24262,61362.0,61361.0,0.001]
[1723636258294,0.001,61362.0,61361.0,0.001]
[1723636259100,0.002,61362.0,61360.0,0.3608]
[1723636259303,0.002,61362.0,61360.0,0.42499876]
[1723636259606,0.001,61362.0,61361.0,0.06419876]
[1723636259805,0.001,61362.0,61361.0,0.13759876]
[1723636259997,0.001,61362.0,61361.0,0.0734]
[1723636260504,0.001,61362.0,61357.0,0.0683]
[1723636260505,0.001,61362.0,61358.0,0.06419876]
[1723636261499,0.2814,61361.0,61358.0,0.06419876]
[1723636261806,0.2814,61361.0,61354.0,0.06419876]
[1723636262000,0.3608,61356.0,61355.0,0.06414702]
[1723636262400,0.3608,61356.0,61354.0,0.06414702]
[1723636262600,0.3608,61356.0,61355.0,0.06414702]
[1723636263003,0.3608,61356.0,61354.0,0.07243593]
[1723636263402,0.3608,61356.0,61354.0,0.00828891]
[1723636263596,0.3608,61356.0,61353.0,0.00819361]
[1723636263808,0.3608,61356.0,61353.0,0.00024433]
[1723636264105,0.3608,61356.0,61355.0,0.06416621]
[1723636264298,0.001,61356.0,61355.0,0.3608]
[1723636264700,0.001,61356.0,61355.0,0.3668]
[1723636264903,0.001,61356.0,61355.0,0.46322241]
[1723636265111,0.001,61356.0,61355.0,0.37881655]
[1723636265812,0.001,61356.0,61355.0,0.47512167]
[1723636266506,0.001,61356.0,61355.0,0.37881655]
[1723636267107,0.001,61356.0,61355.0,0.37281655]
[1723636267303,0.002,61356.0,61355.0,0.43701012]
[1723636267703,0.001,61356.0,61355.0,0.08221012]
[1723636267898,0.001,61356.0,61355.0,0.01801655]
[1723636268504,0.001,61356.0,61355.0,0.11445614]
[1723636269207,0.001,61356.0,61355.0,0.01801655]
[1723636270502,0.001,61356.0,61355.0,0.08218606]
[1723636270698,0.001,61356.0,61355.0,0.11451801]
[1723636270907,0.001,61356.0,61355.0,0.006]
[1723636271304,0.48996,61356.0,61355.0,0.006]
[1723636271502,0.88996,61356.0,61355.0,0.006]
[1723636271707,0.88996,61356.0,61355.0,0.07036267]
[1723636271708,1.25076,61356.0,61355.0,0.07036267]
[1723636271908,1.25076,61356.0,61355.0,0.006]
[1723636273917,1.26282096,61356.0,61355.0,0.006]
[1723636274515,1.62362096,61356.0,61355.0,0.006]
[1723636274715,0.90202096,61356.0,61355.0,0.006]
[1723636274915,0.01306096,61356.0,61354.0,0.3608]
[1723636275510,0.0739,61358.0,61354.0,0.3608]
[1723636275714,0.00020425,61363.0,61354.0,0.45730146]
[1723636275924,0.00020425,61363.0,61362.0,0.3608]
[1723636276406,0.2814,61377.0,61362.0,0.3608]
[1723636276607,0.01184703,61369.0,61362.0,0.37277848]
[1723636276821,0.01184703,61369.0,61362.0,0.46913261]
[1723636277119,0.0707,61374.0,61362.0,0.46913261]
[1723636277913,0.00924433,61367.0,61362.0,0.47013261]
[1723636278317,0.005,61363.0,61362.0,0.47013261]
[1723636278613,0.005,61363.0,61362.0,0.37377848]
[1723636279125,0.005,61363.0,61362.0,0.47013261]
[1723636279424,0.01424433,61367.0,61362.0,0.37377848]
[1723636279627,0.005,61363.0,61362.0,0.37377848]
[1723636280327,0.005,61363.0,61362.0,0.47557905]
[1723636280515,0.005,61363.0,61362.0,0.37377848]
[1723636280717,0.014,61363.0,61362.0,0.37377848]
[1723636280917,0.014,61363.0,61362.0,0.47008292]
[1723636281510,0.014,61363.0,61362.0,0.01297848]
[1723636282121,0.014,61363.0,61362.0,0.10928292]
[1723636282419,0.014,61363.0,61362.0,0.01297848]
[1723636282420,0.009,61363.0,61362.0,0.01297848]
[1723636282614,0.014,61363.0,61362.0,0.01297848]
[1723636283718,0.00524433,61367.0,61362.0,1.07185848]
[1723636283916,0.00524433,61367.0,61366.0,0.3608]
[1723636284913,0.2814,61388.0,61366.0,0.3608]
[1723636285111,0.2814,61388.0,61373.0,0.08021016]
[1723636285112,0.3608,61387.0,61373.0,0.08021016]
[1723636285314,0.3608,61387.0,61378.0,0.06415388]
[1723636285520,0.01205173,61386.0,61379.0,0.06415388]
[1723636286123,0.01205173,61386.0,61372.0,0.3608]
[1723636286124,0.00024433,61387.0,61381.0,0.06415388]
[1723636286421,0.00024433,61387.0,61384.0,0.06411307]
[1723636286626,0.00024433,61387.0,61385.0,0.06411307]
[1723636287017,0.00024433,61387.0,61386.0,0.06411307]
[1723636287217,0.00024433,61387.0,61384.0,0.3608]
[1723636287619,0.00024433,61387.0,61384.0,0.44101016]
[1723636288623,0.00024433,61387.0,61384.0,0.3608]
[1723636289329,0.28164433,61387.0,61382.0,0.08021016]
[1723636289531,0.28164433,61387.0,61377.0,0.45706774]
[1723636289532,0.069,61386.0,61381.0,0.06402446]
[1723636289829,0.1382,61386.0,61384.0,0.001]
[1723636290428,0.48872,61385.0,61384.0,0.002]
[1723636290631,0.1382,61386.0,61384.0,0.002]
[1723636290924,0.1382,61386.0,61384.0,0.001]
[1723636292016,0.1382,61386.0,61371.0,0.45706774]
[1723636292017,0.48872,61385.0,61378.0,0.06402446]
[1723636292216,0.48872,61385.0,61384.0,0.001]
[1723636292217,0.011,61385.0,61384.0,0.001]
[1723636293829,0.011,61385.0,61384.0,0.00180598]
[1723636294029,0.011,61385.0,61384.0,0.00080598]
[1723636294828,0.011,61385.0,61384.0,0.00180598]
[1723636294829,0.08378161,61385.0,61384.0,0.00180598]
[1723636296121,0.019,61385.0,61384.0,0.00180598]
[1723636296321,0.019,61385.0,61384.0,0.00280598]
[1723636296520,0.008,61385.0,61384.0,0.002]
[1723636297620,0.0727714,61385.0,61384.0,0.002]
[1723636297829,0.008,61385.0,61384.0,0.002]
[1723636303430,0.008,61385.0,61384.0,0.06602446]
[1723636304026,0.008,61385.0,61384.0,0.002]
[1723636305429,0.008,61385.0,61384.0,0.08221016]
[1723636305626,0.0647714,61406.0,61384.0,0.4334]
[1723636305830,0.3608,61408.0,61395.0,0.06409909]
[1723636305831,0.0706,61404.0,61395.0,0.06409909]
[1723636306127,0.0706,61404.0,61393.0,0.3608]
[1723636306128,0.01189109,61399.0,61393.0,0.3608]
[1723636307532,0.01189109,61399.0,61395.0,0.001]
[1723636307740,0.0871,61396.0,61395.0,0.001]
[1723636308033,0.4479,61396.0,61395.0,0.001]
[1723636308337,0.4619,61396.0,61395.0,0.001]
[1723636309239,0.4629,61396.0,61395.0,0.001]
[1723636309435,0.4629,61396.0,61390.0,0.06408687]
[1723636309624,0.3608,61391.0,61390.0,0.06408687]
[1723636310224,0.4639,61396.0,61388.0,0.0803682]
[1723636310225,0.4499,61396.0,61388.0,0.0803682]
[1723636310432,0.4489,61396.0,61392.0,0.06411428]
[1723636310735,0.4339,61396.0,61393.0,0.06411428]
[1723636310931,0.4339,61396.0,61395.0,0.001]
[1723636312249,0.4339,61396.0,61394.0,0.06411428]
[1723636312432,0.4339,61396.0,61395.0,0.06411428]
[1723636312633,0.4339,61396.0,61394.0,0.06411428]
[1723636312834,0.4339,61396.0,61390.0,0.08112387]
[1723636312835,0.4339,61396.0,61393.0,0.06411428]
[1723636313034,0.48864,61395.0,61393.0,0.06411428]
[1723636313231,0.48864,61395.0,61390.0,0.001]
[1723636313232,0.48864,61395.0,61390.0,0.00100001]
[1723636313537,0.48864,61395.0,61388.0,0.00024433]
[1723636313538,0.3608,61391.0,61388.0,0.00024433]
[1723636313743,0.1378,61390.0,61388.0,0.00024433]
[1723636314042,0.62648,61390.0,61388.0,0.00024433]
[1723636314340,0.48868,61389.0,61388.0,0.00024433]
[1723636314542,0.88868,61389.0,61388.0,0.00024433]
[1723636316437,0.48868,61389.0,61388.0,0.00024433]
[1723636316637,0.0672,61390.0,61388.0,0.00024433]
[1723636317332,0.006,61389.0,61388.0,0.00124433]
[1723636317533,0.012,61389.0,61388.0,0.00224433]
[1723636317733,0.012,61389.0,61388.0,0.00324433]
[1723636318930,0.07861332,61390.0,61388.0,0.00124433]
[1723636320438,0.006,61389.0,61388.0,0.00224433]
[1723636320940,0.006,61389.0,61388.0,0.00124433]
[1723636321141,0.08461332,61390.0,61388.0,0.00224433]
[1723636322345,0.48868,61389.0,61388.0,0.00224433]
[1723636322531,0.85469332,61390.0,61388.0,0.00224433]
[1723636322939,0.85469332,61390.0,61388.0,0.00124433]
[1723636323345,0.84869332,61390.0,61388.0,0.00024433]
[1723636323641,0.07861332,61390.0,61388.0,0.00024433]
[1723636324044,0.07861332,61390.0,61388.0,0.00124433]
[1723636324644,0.007,61389.0,61388.0,0.00424433]
[1723636326846,0.3678,61389.0,61388.0,0.00424433]
[1723636328643,0.3608,61389.0,61388.0,0.00224433]
[1723636329149,0.3608,61389.0,61388.0,0.00124433]
[1723636329347,0.07861332,61390.0,61388.0,0.00124433]
[1723636329546,0.3608,61389.0,61388.0,0.00124433]
[1723636330357,0.3608,61389.0,61388.0,0.00224433]
[1723636330358,0.3678,61389.0,61388.0,0.00224433]
[1723636331357,0.3608,61389.0,61388.0,0.00124433]
[1723636333849,0.3748,61389.0,61388.0,0.00324433]
[1723636334150,0.3748,61389.0,61388.0,0.0833682]
[1723636334365,0.3748,61389.0,61388.0,0.00324433]
[1723636334557,0.023,61389.0,61388.0,0.14505728]
[1723636335053,0.03,61389.0,61388.0,0.14605728]
[1723636335654,0.03,61389.0,61388.0,0.00424433]
[1723636335845,0.021,61389.0,61388.0,0.00324433]
[1723636336045,0.3608,61390.0,61388.0,0.00024433]
[1723636336255,0.3608,61390.0,61388.0,0.08051449]
[1723636336661,0.3608,61390.0,61389.0,0.08027016]
[1723636337054,0.3608,61390.0,61388.0,0.00124433]
[1723636338150,0.007,61389.0,61388.0,0.00124433]
[1723636338357,0.007,61389.0,61388.0,0.00224433]
[1723636338358,0.012,61389.0,61388.0,0.00224433]
[1723636338766,0.012,61389.0,61388.0,0.08251449]
[1723636338965,0.012,61389.0,61388.0,0.00224433]
[1723636339355,0.007,61389.0,61388.0,0.00224433]
[1723636340453,0.3658,61390.0,61388.0,0.08151449]
[1723636340759,0.3748,61390.0,61388.0,0.00224433]
[1723636341463,0.009,61389.0,61388.0,0.00224433]
[1723636341849,0.0698,61389.0,61388.0,0.00224433]
[1723636342857,0.0698,61389.0,61388.0,0.08258287]
[1723636343056,0.0698,61389.0,61388.0,0.00224433]
[1723636343263,0.0698,61389.0,61388.0,0.08158287]
[1723636343650,0.0698,61389.0,61388.0,0.00124433]
[1723636344060,0.1417,61389.0,61388.0,0.00124433]
[1723636344655,0.0748,61389.0,61388.0,0.00024433]
[1723636344855,0.0888,61389.0,61388.0,0.00224433]
[1723636345257,0.019,61389.0,61388.0,0.00224433]
[1723636345956,0.019,61389.0,61388.0,0.09851207]
[1723636346157,0.019,61389.0,61388.0,0.2403248]
[1723636346464,0.3608,61390.0,61388.0,0.14205706]
[1723636346662,0.3608,61390.0,61388.0,0.00024433]
[1723636346867,0.005,61389.0,61388.0,0.00124433]
[1723636347258,0.005,61389.0,61388.0,0.08158586]
[1723636347457,0.02,61389.0,61388.0,0.08358586]
[1723636347663,0.02,61389.0,61388.0,0.08458586]
[1723636348269,0.005,61389.0,61388.0,0.08158586]
[1723636348561,0.3608,61390.0,61388.0,0.00024433]
[1723636349769,0.005,61389.0,61388.0,0.00124433]
[1723636349966,0.005,61389.0,61388.0,0.00224433]
[1723636350364,0.005,61389.0,61388.0,0.0825224]
[1723636351058,0.005,61389.0,61388.0,0.0845224]
[1723636351258,0.005,61389.0,61388.0,0.00424433]
[1723636351863,0.012,61389.0,61388.0,0.00424433]
[1723636352266,0.012,61389.0,61388.0,0.00324433]
[1723636352961,0.012,61389.0,61388.0,0.00224433]
[1723636353166,0.012,61389.0,61388.0,0.1440609]
[1723636353368,0.012,61389.0,61388.0,0.00224433]
[1723636353570,0.012,61389.0,61388.0,0.1440609]
[1723636353864,0.005,61389.0,61388.0,0.1430609]
[1723636354259,0.005,61389.0,61388.0,0.1440609]
[1723636354260,0.012,61389.0,61388.0,0.1440609]
[1723636354463,0.012,61389.0,61388.0,0.00224433]
[1723636355058,0.007,61389.0,61388.0,0.00124433]
[1723636355770,0.012,61389.0,61388.0,0.00224433]
[1723636356068,0.012,61389.0,61388.0,0.08249094]
[1723636356671,0.017,61389.0,61388.0,0.08349094]
[1723636356867,0.017,61389.0,61388.0,0.14506286]
[1723636357476,0.024,61389.0,61388.0,0.14606286]
[1723636359073,0.019,61389.0,61388.0,0.14506286]
[1723636360266,0.019,61389.0,61388.0,0.14505794]
[1723636360475,0.019,61389.0,61388.0,0.00324433]
[1723636360776,0.019,61389.0,61388.0,0.14505794]
[1723636361277,0.019,61389.0,61388.0,0.39829654]
[1723636361870,0.019,61389.0,61388.0,0.46899654]
[1723636362076,0.019,61389.0,61388.0,0.21575794]
[1723636362266,0.00024433,61401.0,61388.0,2.02685972]
[1723636362466,0.0647714,61415.0,61400.0,0.0961549]
[1723636362668,0.1431,61416.0,61408.0,0.08009419]
[1723636362868,0.15427844,61416.0,61410.0,0.08009419]
[1723636363068,0.15427844,61416.0,61411.0,0.08009419]
[1723636363269,0.3608,61415.0,61411.0,0.08009419]
[1723636363568,0.3608,61415.0,61408.0,0.08009419]
[1723636363870,0.3608,61415.0,61406.0,0.3608]
[1723636363871,0.3608,61415.0,61406.0,0.08009419]
[1723636364266,0.3608,61415.0,61407.0,0.00024433]
[1723636365273,0.3608,61408.0,61407.0,0.00024433]
[1723636365775,0.3608,61408.0,61407.0,0.00124433]
[1723636366870,0.3608,61408.0,61407.0,0.00224433]
[1723636368078,0.37197851,61408.0,61407.0,0.00224433]
[1723636372184,0.33197851,61408.0,61407.0,0.00224433]
[1723636374784,0.33197851,61408.0,61392.0,0.76889419]
[1723636374785,1.22049851,61408.0,61395.0,0.06384034]
[1723636374981,1.22049851,61408.0,61392.0,0.32948]
[1723636374982,0.6422,61399.0,61392.0,0.32948]
[1723636375186,0.3608,61393.0,61390.0,0.06384034]
[1723636375397,0.3608,61393.0,61388.0,0.06384034]
[1723636375579,0.3608,61393.0,61387.0,0.06384034]
[1723636375780,0.3608,61393.0,61388.0,0.06384034]
[1723636375982,0.3608,61393.0,61389.0,0.06384034]
[1723636376276,0.3608,61393.0,61390.0,0.06384034]
[1723636376479,0.3608,61393.0,61391.0,0.06384034]
[1723636376688,0.3608,61393.0,61392.0,0.06384034]
[1723636377689,0.3618,61393.0,61392.0,0.06584034]
[1723636377892,0.3618,61393.0,61392.0,0.002]
[1723636378286,0.3608,61393.0,61392.0,0.002]
[1723636378493,0.37436752,61393.0,61392.0,0.002]
[1723636379495,0.37436752,61393.0,61392.0,0.001]
[1723636380097,0.37436752,61393.0,61391.0,0.06384034]
[1723636380098,0.37436752,61393.0,61390.0,0.06384034]
[1723636380982,0.37436752,61393.0,61385.0,0.08009419]
[1723636380983,0.37236752,61393.0,61389.0,0.06384034]
[1723636381485,0.37236752,61393.0,61390.0,0.001]
[1723636381486,0.37336752,61393.0,61390.0,0.001]
[1723636381888,0.37236752,61393.0,61390.0,0.001]
[1723636383293,0.37336752,61393.0,61390.0,0.001]
[1723636383482,0.37336752,61393.0,61387.0,0.06384034]
[1723636383687,0.3608,61388.0,61387.0,0.06384034]
[1723636386096,0.3608,61388.0,61384.0,0.00024433]
[1723636386297,0.3608,61388.0,61384.0,0.06425075]
[1723636386592,0.0731,61387.0,61384.0,0.00024433]
[1723636388392,0.2814,61386.0,61384.0,0.00024433]
[1723636388587,0.3608,61385.0,61384.0,0.00024433]
[1723636388991,0.3608,61385.0,61384.0,0.00124433]
[1723636389296,0.3608,61385.0,61384.0,0.00724433]
[1723636390688,0.37243792,61385.0,61384.0,0.00724433]
[1723636391295,0.37243792,61385.0,61384.0,0.00124433]
[1723636391493,0.37343792,61385.0,61384.0,0.00024433]
[1723636392394,0.37343792,61385.0,61384.0,0.00324433]
[1723636394395,0.37243792,61385.0,61384.0,0.00324433]